bitfinex-derivatives/quotes_ETHF0:USTF0_20241004
["timestamp","ask_amount","ask_price","bid_price","bid_amount"]
[1728006118097,2.177,2369.0,2368.3,3.2078]
[1728006118297,5.3848,2369.0,2368.3,3.63006]
[1728006118505,5.3848,2369.0,2368.3,3.2078]
[1728006118804,2.177,2369.0,2368.3,3.63005]
[1728006118995,2.177,2369.0,2368.4,0.3938]
[1728006120001,2.177,2369.0,2368.5,0.4246]
[1728006120199,2.177,2369.0,2368.6,0.3988]
[1728006120700,0.42217,2368.8,2368.3,3.2078]
[1728006120899,5.89917,2368.8,2368.3,3.2078]
[1728006121096,0.4097,2368.7,2368.3,3.2078]
[1728006121408,0.42221,2368.6,2368.3,3.2078]
[1728006121608,0.4125,2368.6,2368.3,3.2078]
[1728006122094,0.42223,2368.5,2368.3,3.2078]
[1728006122294,7.9349,2368.6,2368.3,3.2078]
[1728006122495,0.48990963,2368.5,2368.3,3.2078]
[1728006122704,0.06768091,2368.4,2368.0,3.2078]
[1728006123506,3.7125,2368.6,2368.0,3.2078]
[1728006123708,3.3,2368.2,2368.0,3.2078]
[1728006123907,0.06768565,2368.1,2368.0,3.2078]
[1728006124107,0.20776027,2368.1,2368.0,3.2078]
[1728006124311,0.06769218,2368.1,2368.0,3.2078]
[1728006124507,0.27743836,2368.1,2368.0,3.2078]
[1728006126018,0.69973836,2368.1,2367.8,0.4254]
[1728006126212,3.3,2367.9,2367.6,3.6126]
[1728006126513,0.49004218,2367.8,2367.6,3.2078]
[1728006126819,11.21639218,2367.7,2367.2,0.389]
[1728006127007,3.3,2367.5,2367.2,0.389]
[1728006127214,0.06769218,2367.4,2367.0,3.6184]
[1728006127417,0.4183,2367.4,2367.0,3.6184]
[1728006127612,0.06771767,2367.3,2367.0,3.6184]
[1728006128522,0.06771767,2367.3,2367.0,0.4106]
[1728006128523,2.178,2367.2,2367.0,0.4106]
[1728006128721,0.06771767,2367.1,2367.0,0.4106]
[1728006128919,2.178,2367.2,2367.0,0.4106]
[1728006138631,2.178,2367.2,2366.9,0.389]
[1728006138632,2.60047,2367.2,2366.9,0.389]
[1728006138824,3.00646,2367.2,2366.9,0.389]
[1728006139224,3.00646,2367.2,2366.7,3.629]
[1728006139225,3.3,2367.1,2366.7,3.629]
[1728006140432,3.72247,2367.1,2366.7,3.629]
[1728006140626,3.3,2367.1,2366.7,3.629]
[1728006141328,3.3,2366.8,2366.7,3.629]
[1728006141528,3.3,2366.8,2366.5,0.4224]
[1728006141529,6.5078,2366.8,2366.5,0.4224]
[1728006141923,3.50915521,2366.8,2366.4,0.3958]
[1728006142133,0.20915521,2366.8,2366.4,0.811]
[1728006142330,0.3912,2366.9,2366.4,0.811]
[1728006142533,0.81372,2366.9,2366.4,0.811]
[1728006142735,0.3912,2366.9,2366.4,0.811]
[1728006142931,0.60553494,2366.9,2366.4,0.811]
[1728006143237,3.3,2366.8,2366.4,0.811]
[1728006143429,6.93034,2366.8,2366.4,0.811]
[1728006144226,3.3,2366.6,2366.4,0.3958]
[1728006144432,0.3948,2366.7,2366.4,0.3958]
[1728006145025,0.81736,2366.7,2366.4,0.3958]
[1728006145627,0.3948,2366.7,2366.4,0.3958]
[1728006145829,0.81735,2366.7,2366.4,0.3958]
[1728006146439,0.3948,2366.7,2366.4,0.3958]
[1728006147430,0.81736,2366.7,2366.1,3.623]
[1728006148436,3.3,2366.4,2366.1,3.2078]
[1728006148626,3.3,2366.2,2365.8,0.4267]
[1728006150137,6.5078,2366.2,2365.8,0.4267]
[1728006150537,3.3,2366.2,2365.8,0.4267]
[1728006151134,6.5078,2366.2,2365.8,0.4267]
[1728006151737,6.924,2366.2,2365.8,0.4267]
[1728006152635,3.72268,2366.0,2365.5,0.3893]
[1728006152837,3.624,2366.2,2365.5,0.3893]
[1728006152838,3.3,2365.9,2365.5,0.3893]
[1728006154136,0.42265,2366.1,2365.5,0.3893]
[1728006154445,3.3,2366.0,2365.5,0.3893]
[1728006155334,0.4085,2366.3,2365.5,6.8971]
[1728006155535,3.614,2366.5,2365.8,6.5078]
[1728006155536,3.2078,2366.5,2365.8,6.5078]
[1728006155737,5.52262969,2366.8,2366.2,0.42263]
[1728006155938,2.22262969,2366.8,2366.3,0.8097]
[1728006156142,0.42255,2366.7,2366.4,0.4053]
[1728006156343,3.3,2366.6,2366.4,0.4053]
[1728006156646,5.52262969,2366.8,2366.4,0.4053]
[1728006156945,0.42255,2366.7,2366.4,0.4053]
[1728006157145,5.52262969,2366.8,2366.4,0.4053]
[1728006157446,2.092,2366.7,2366.4,0.4053]
[1728006158454,2.51455,2366.7,2366.4,0.4053]
[1728006158844,2.092,2366.7,2366.4,0.4053]
[1728006160548,2.30633494,2366.9,2366.4,0.4053]
[1728006160738,2.30633494,2366.9,2366.4,3.6131]
[1728006160739,2.092,2366.9,2366.4,3.6131]
[1728006161145,3.3,2366.8,2366.4,3.6131]
[1728006161348,3.3,2366.7,2366.4,0.4053]
[1728006162541,3.72255,2366.7,2366.4,0.4053]
[1728006162748,8.81060898,2366.9,2366.4,0.4053]
[1728006163447,3.2078,2367.2,2366.5,3.2078]
[1728006163649,4.121,2367.7,2366.6,3.3]
[1728006163650,6.5078,2367.5,2366.6,3.3]
[1728006163856,2.092,2367.3,2366.7,0.82483]
[1728006164148,2.092,2367.3,2366.8,3.2078]
[1728006164348,2.092,2367.3,2366.9,0.3867]
[1728006164944,0.8139,2367.6,2366.9,0.3867]
[1728006165151,2.092,2367.6,2367.1,3.2078]
[1728006165349,3.43506761,2367.7,2367.1,3.2078]
[1728006165350,0.13506761,2367.7,2367.2,0.82475]
[1728006165544,2.092,2367.9,2367.4,3.2078]
[1728006165752,14.08074618,2368.1,2367.5,0.3867]
[1728006165950,2.092,2368.0,2367.5,0.8091]
[1728006166255,2.092,2368.0,2367.5,0.3867]
[1728006166855,2.092,2368.0,2367.5,0.80909]
[1728006167057,2.092,2368.0,2367.7,3.2078]
[1728006167258,2.092,2368.0,2367.8,0.4163]
[1728006167450,2.092,2368.0,2367.8,0.8173]
[1728006167649,2.092,2368.0,2367.8,5.0405]
[1728006167846,2.092,2368.0,2367.9,4.2232]
[1728006168046,2.092,2368.0,2367.8,5.0405]
[1728006168646,10.571,2368.1,2367.8,5.0405]
[1728006168844,3.3,2368.4,2367.8,0.8173]
[1728006169045,2.092,2368.3,2367.8,0.8173]
[1728006169552,3.3,2368.4,2367.8,0.8173]
[1728006169759,5.94351222,2368.4,2367.8,0.8173]
[1728006170057,11.41300166,2368.4,2367.8,0.8173]
[1728006170253,10.99075166,2368.4,2367.8,0.8173]
[1728006170452,10.99075166,2368.4,2367.8,0.401]
[1728006170453,3.3,2368.2,2367.8,0.401]
[1728006170665,0.63659779,2368.1,2367.8,0.401]
[1728006170853,3.93872222,2368.0,2367.5,0.3867]
[1728006171752,3.93873222,2368.0,2367.5,0.3867]
[1728006172255,0.42234,2367.9,2367.5,0.3867]
[1728006172759,3.51641222,2368.0,2367.5,0.3867]
[1728006172960,0.42236,2367.8,2367.5,0.3867]
[1728006173164,0.42238,2367.6,2367.4,0.42]
[1728006173368,0.42243,2367.4,2367.2,0.4204]
[1728006173963,3.72243,2367.4,2367.2,0.4204]
[1728006174364,3.3,2367.4,2367.2,0.4204]
[1728006174557,2.089,2367.6,2367.2,0.4204]
[1728006174958,2.089,2367.6,2367.3,0.4273]
[1728006176170,5.389,2367.6,2367.2,0.4204]
[1728006176769,2.089,2367.6,2367.2,0.4204]
[1728006178371,5.7254,2367.9,2367.3,7.85424]
[1728006178573,5.7254,2367.9,2367.3,4.03774]
[1728006178773,5.7254,2367.9,2367.4,0.396]
[1728006180175,2.93993,2367.9,2367.4,3.6038]
[1728006180382,2.5176,2367.9,2367.4,3.6038]
[1728006181074,2.5176,2367.9,2367.4,3.2078]
[1728006181280,0.42237,2367.7,2367.4,3.2078]
[1728006181479,0.4224,2367.6,2367.2,0.4204]
[1728006181774,0.82989,2367.6,2367.2,0.4204]
[1728006181975,0.4075,2367.6,2367.2,0.4204]
[1728006183288,0.82989,2367.6,2367.2,0.4204]
[1728006183576,0.4075,2367.6,2367.2,0.4204]
[1728006185481,0.13272947,2367.8,2367.2,0.4204]
[1728006185671,3.35124,2367.9,2367.3,0.4197]
[1728006185877,0.06770535,2367.8,2367.3,0.4197]
[1728006186078,0.06770535,2367.8,2367.3,3.6275]
[1728006186283,1.26224,2367.9,2367.3,3.6275]
[1728006186475,3.35124,2367.9,2367.3,3.6275]
[1728006187081,3.48344137,2367.9,2367.3,3.6275]
[1728006187582,0.8399,2367.9,2367.3,3.6275]
[1728006187777,0.42235,2367.8,2367.3,3.6275]
[1728006188079,1.26224,2367.9,2367.3,3.6275]
[1728006189585,0.42235,2367.8,2367.3,3.6275]
[1728006190286,0.42236,2367.8,2367.3,3.6275]
[1728006190681,0.8399,2367.9,2367.3,3.6275]
[1728006190984,0.8399,2367.9,2367.3,4.04994]
[1728006191177,0.8399,2367.9,2367.3,3.6275]
[1728006191379,1.26224,2367.9,2367.3,3.6275]
[1728006192180,0.8399,2367.9,2367.3,3.6275]
[1728006192376,0.42235,2367.8,2367.3,3.6275]
[1728006193088,0.8399,2367.9,2367.3,3.6275]
[1728006193390,0.42235,2367.8,2367.3,3.6275]
[1728006193983,0.8399,2367.9,2367.3,3.6275]
[1728006194190,0.8399,2367.9,2367.3,3.2078]
[1728006194191,0.42242,2367.4,2367.3,3.2078]
[1728006194586,0.42245,2367.3,2366.8,0.8247]
[1728006194885,0.42246,2367.2,2366.8,0.8247]
[1728006195085,0.8384,2367.4,2366.8,0.8247]
[1728006195288,3.72246,2367.2,2366.8,0.8247]
[1728006195592,0.42246,2367.2,2366.8,0.8247]
[1728006195782,5.46948944,2368.2,2366.8,0.8247]
[1728006195783,3.6301,2368.1,2367.4,0.42241]
[1728006195979,0.06769821,2368.0,2367.5,4.14449]
[1728006196179,4.4598,2368.1,2367.5,4.54709]
[1728006196393,4.6659544,2368.1,2367.5,4.1247]
[1728006196792,4.4598,2368.1,2367.5,4.1247]
[1728006197792,4.4598,2368.1,2367.5,4.54709]
[1728006198087,4.4598,2368.1,2367.5,4.5412]
[1728006199692,4.66787792,2368.1,2367.5,4.5412]
[1728006200184,4.66787792,2368.1,2367.5,4.96359]
[1728006200385,6.32078944,2368.6,2368.0,6.5078]
[1728006200592,0.8513,2368.6,2368.2,3.3]
[1728006200890,0.8513,2368.6,2368.3,3.2078]
[1728006201095,3.2078,2368.8,2368.3,3.2078]
[1728006202087,3.36246,2368.9,2368.4,3.3]
[1728006202088,2.9403,2368.9,2368.4,3.3]
[1728006202288,0.422,2369.0,2368.4,3.3]
[1728006202592,0.422,2369.0,2368.6,3.3]
[1728006202796,0.422,2369.0,2368.7,0.8248]
[1728006203189,3.3,2368.9,2368.0,6.5078]
[1728006203394,0.4222,2368.7,2368.0,6.5078]
[1728006203594,0.4291,2368.6,2368.0,6.5078]
[1728006204397,0.4291,2368.6,2368.2,3.3]
[1728006206097,0.4182,2368.5,2368.2,3.3]
[1728006206903,0.54371323,2368.8,2368.2,7.5224]
[1728006207092,0.42222,2368.6,2368.0,6.9021]
[1728006208293,0.48990705,2368.5,2368.0,6.5078]
[1728006208592,0.48990705,2368.5,2368.0,3.2078]
[1728006208593,0.06768068,2368.4,2368.0,3.2078]
[1728006209995,0.48992068,2368.4,2367.9,0.8248]
[1728006210192,0.06768068,2368.3,2367.9,0.8248]
[1728006210394,0.42224,2368.4,2367.9,0.8248]
[1728006210588,0.46768535,2368.3,2367.9,0.8248]
[1728006210788,0.4,2368.3,2367.9,0.8248]
[1728006211397,0.06768542,2368.2,2367.9,0.8248]
[1728006212693,1.202,2368.3,2367.9,0.8248]
[1728006212998,1.33468852,2368.3,2367.9,0.8248]
[1728006221699,3.63,2368.7,2368.0,3.3]
[1728006221906,2.57489341,2368.6,2368.0,3.3]
[1728006222103,5.46948944,2368.3,2368.0,6.5078]
[1728006228706,5.46948944,2368.4,2368.0,6.5078]
[1728006230328,0.42223,2368.5,2368.0,6.5078]
[1728006230621,2.50721,2368.6,2368.0,6.5078]
[1728006231416,0.42223,2368.5,2368.0,6.5078]
[1728006233713,2.50722,2368.6,2368.0,6.5078]
[1728006234220,5.46948944,2368.8,2368.2,3.3]
[1728006234426,5.46948944,2369.1,2368.6,3.3]
[1728006234633,6.23289608,2369.3,2368.9,3.3]
[1728006234816,0.06765205,2369.2,2368.9,3.3]
[1728006235514,0.27858783,2369.2,2368.9,3.3]
[1728006235719,0.06765205,2369.1,2368.9,3.3]
[1728006236124,0.06765205,2369.1,2368.7,4.5313]
[1728006236928,0.06765205,2369.1,2368.9,3.3]
[1728006237224,0.06765133,2369.0,2368.9,3.3]
[1728006237419,0.9452905,2369.6,2368.9,16.7294]
[1728006237622,0.06765044,2369.5,2369.3,3.3]
[1728006237817,0.06765044,2369.5,2369.4,0.8195]
[1728006240546,0.4068,2370.0,2369.4,11.4638]
[1728006240742,0.06762555,2369.9,2369.8,3.3]
[1728006241341,2.84347138,2370.4,2369.8,6.5078]
[1728006241538,0.06762178,2370.2,2369.8,6.5078]
[1728006241735,0.06762178,2370.2,2370.1,3.3]
[1728006242947,1.2184,2370.6,2370.1,3.3]
[1728006243148,0.4001,2370.6,2370.2,3.3]
[1728006244146,3.2078,2371.1,2370.1,3.2078]
[1728006244347,5.4939804,2370.5,2370.4,6.5078]
[1728006244642,9.7123804,2370.5,2370.1,3.2078]
[1728006244843,5.4939804,2370.2,2370.1,3.2078]
[1728006246641,5.9158804,2370.3,2370.1,3.2078]
[1728006248647,5.4939804,2370.3,2370.1,3.2078]
[1728006248953,0.74598279,2370.4,2370.1,3.2078]
[1728006248954,6.66185319,2370.4,2370.1,3.2078]
[1728006250352,6.23996319,2370.4,2370.1,3.2078]
[1728006250542,6.23996319,2370.4,2369.9,0.3961]
[1728006250543,0.42191,2370.3,2369.9,0.3961]
[1728006252049,0.42192,2370.2,2369.8,6.5078]
[1728006252251,0.42191,2370.3,2369.8,6.5078]
[1728006252553,0.42192,2370.2,2369.8,6.5078]
[1728006253547,0.42191,2370.3,2369.8,6.5078]
[1728006253752,0.74598279,2370.4,2369.8,6.5078]
[1728006254054,0.42195,2370.1,2369.6,3.6923]
[1728006254649,0.42193,2370.2,2369.6,3.6923]
[1728006255250,0.4219,2370.3,2369.7,0.3884]
[1728006255656,0.42193,2370.2,2369.7,0.3884]
[1728006255859,0.42191,2370.3,2369.7,0.3884]
[1728006256451,0.74598279,2370.4,2369.7,0.3884]
[1728006257348,0.42194,2370.1,2369.7,0.3884]
[1728006257561,0.74598279,2370.4,2369.7,0.3884]
[1728006257755,0.42193,2370.2,2369.7,0.3884]
[1728006258454,0.74598279,2370.4,2369.7,0.3884]
[1728006258658,3.3,2370.3,2369.7,0.3884]
[1728006258856,0.42199,2369.8,2369.7,0.3884]
[1728006259061,0.42199,2369.8,2369.6,0.3923]
[1728006259265,0.42199,2369.8,2369.4,0.393]
[1728006259266,0.42201,2369.7,2369.4,0.393]
[1728006259462,0.8084,2369.7,2369.4,0.393]
[1728006259760,4.22,2369.6,2369.1,0.4139]
[1728006259962,0.80833,2369.6,2369.1,0.4139]
[1728006261062,0.8084,2369.7,2369.2,3.3]
[1728006261363,3.30842,2369.7,2369.2,3.3]
[1728006262167,2.8864,2369.7,2369.2,3.3]
[1728006262356,3.30843,2369.7,2369.2,3.3]
[1728006262863,0.42203,2369.6,2369.1,0.4139]
[1728006263071,2.8864,2369.7,2369.1,0.4139]
[1728006263261,3.30842,2369.7,2369.1,0.4139]
[1728006263466,2.8864,2369.7,2369.1,0.4139]
[1728006263669,0.42203,2369.6,2369.1,0.4139]
[1728006263971,3.30842,2369.7,2369.1,0.4139]
[1728006265362,6.1864,2369.7,2369.1,0.4139]
[1728006265568,0.06764657,2369.6,2369.1,0.4139]
[1728006265768,0.42207,2369.4,2369.0,0.393]
[1728006266065,0.42208,2369.4,2369.0,0.393]
[1728006269167,0.06765515,2369.3,2368.7,0.4141]
[1728006269467,0.06765515,2369.3,2368.7,0.8165]
[1728006269663,0.4041,2369.2,2368.7,0.8165]
[1728006269864,0.61139579,2369.2,2368.7,0.8165]
[1728006271374,1.03350579,2369.2,2368.7,0.8165]
[1728006271970,0.42212,2369.1,2368.7,0.8165]
[1728006272174,1.03350579,2369.2,2368.7,0.8165]
[1728006273772,1.16218622,2369.2,2368.7,0.8165]
[1728006274681,5.4939804,2369.5,2369.0,3.72212]
[1728006274877,0.42204,2369.6,2369.2,3.2078]
[1728006275181,3.43354351,2369.7,2369.3,0.8245]
[1728006275369,3.43354351,2369.7,2369.3,0.4265]
[1728006275370,0.42206,2369.4,2369.3,0.4265]
[1728006275681,10.8649804,2369.5,2369.0,0.4265]
[1728006275881,4.0842,2369.3,2369.0,0.4265]
[1728006277181,4.50629,2369.3,2369.0,0.4265]
[1728006277573,4.0842,2369.3,2369.0,0.4265]
[1728006277775,0.42212,2369.2,2369.0,0.4265]
[1728006277974,0.62836284,2369.2,2369.0,0.4265]
[1728006278170,0.20624284,2369.2,2369.0,0.4265]
[1728006278379,7.5208,2369.2,2369.0,0.4265]
[1728006278576,7.73059183,2369.2,2368.5,0.4072]
[1728006278870,7.73059183,2369.2,2368.6,0.3913]
[1728006278871,3.2078,2368.8,2368.6,0.3913]
[1728006279175,5.4939804,2368.9,2368.6,0.3913]
[1728006279482,6.2877804,2368.9,2368.6,0.3913]
[1728006279889,5.4939804,2368.9,2368.6,0.3913]
[1728006280187,0.21040445,2369.0,2368.6,0.3913]
[1728006280373,0.21040445,2369.0,2368.6,3.6913]
[1728006280677,8.7017804,2369.1,2368.7,3.2078]
[1728006280990,3.2078,2369.1,2368.7,3.2078]
[1728006281678,8.7017804,2369.1,2368.7,3.2078]
[1728006282086,3.3676579,2369.0,2368.6,0.3913]
[1728006282279,3.687,2369.0,2368.6,0.3913]
[1728006282483,0.06766345,2368.9,2368.6,0.3913]
[1728006282782,0.387,2369.0,2368.6,0.3913]
[1728006283192,0.06766453,2368.9,2368.6,0.3913]
[1728006283378,0.387,2369.0,2368.6,0.3913]
[1728006284478,0.21314038,2369.2,2368.6,3.6913]
[1728006284683,2.20503423,2369.3,2368.6,3.6913]
[1728006284989,0.06765821,2369.2,2368.6,3.6913]
[1728006285183,0.21429989,2369.1,2368.6,3.6913]
[1728006285580,2.20503423,2369.3,2368.6,3.6913]
[1728006285780,0.48975882,2369.2,2368.6,3.6913]
[1728006286083,2.20503423,2369.3,2368.6,0.3913]
[1728006286084,0.27678341,2369.1,2368.6,0.3913]
[1728006286284,2.20503423,2369.3,2368.6,0.3913]
[1728006286588,0.06765869,2369.2,2368.6,0.3913]
[1728006286784,0.2061039,2369.1,2368.6,0.3913]
[1728006286985,0.06765994,2369.0,2368.6,0.3913]
[1728006287386,0.42214,2369.0,2368.6,0.3913]
[1728006288687,0.42216,2368.9,2368.6,0.3913]
[1728006288887,1.23416,2368.9,2368.6,0.3913]
[1728006289489,0.42219,2368.8,2368.6,0.3913]
[1728006289690,1.23416,2368.9,2368.6,0.3913]
[1728006290493,0.83236,2368.9,2368.6,0.3913]
[1728006291579,2.69469179,2369.1,2368.6,0.3913]
[1728006291580,2.28289179,2369.1,2368.6,0.3913]
[1728006291778,2.70502179,2369.1,2368.6,0.3913]
[1728006292785,0.42214,2369.0,2368.6,0.3913]
[1728006292984,2.70869179,2369.1,2368.6,0.3913]
[1728006293195,3.13082179,2369.1,2368.6,0.3913]
[1728006294080,2.91892,2369.1,2368.6,0.3913]
[1728006294282,0.84792,2369.1,2368.6,0.3913]
[1728006294483,0.63362638,2369.1,2368.6,0.3913]
[1728006294685,0.4258,2369.1,2368.6,0.3913]
[1728006294880,0.42211,2369.2,2368.7,3.2078]
[1728006295083,0.63120375,2369.2,2368.7,3.2078]
[1728006295285,0.63120375,2369.2,2368.7,6.5078]
[1728006295687,0.4897751,2369.1,2368.7,6.5078]
[1728006295882,0.0676551,2369.0,2368.7,6.5078]
[1728006297190,2.19508252,2369.3,2368.7,6.5078]
[1728006297495,5.4939804,2369.1,2368.7,6.5078]
[1728006297792,0.06765428,2369.0,2368.7,6.5078]
[1728006299094,0.42216,2368.9,2368.7,6.5078]
[1728006299292,0.42217,2368.8,2368.7,3.2078]
[1728006299489,0.48982768,2368.8,2368.7,3.2078]
[1728006299793,5.98380808,2368.8,2368.7,3.2078]
[1728006300190,5.98381219,2368.8,2368.7,3.2078]
[1728006300592,5.98381219,2368.8,2368.5,0.4181]
[1728006300593,0.42221,2368.6,2368.5,0.4181]
[1728006300794,5.4939804,2368.7,2368.5,0.4181]
[1728006301004,0.06766564,2368.6,2368.5,0.4181]
[1728006301191,5.4939804,2368.7,2368.5,0.4181]
[1728006302800,5.4939804,2368.7,2368.6,4.2216]
[1728006303097,5.4939804,2368.7,2368.5,3.6259]
[1728006303399,5.4939804,2368.7,2367.6,4.49030369]
[1728006303400,3.3,2368.6,2368.2,3.2078]
[1728006303592,0.42226,2368.3,2368.2,3.2078]
[1728006304098,4.64466,2368.3,2368.2,3.2078]
[1728006304494,0.42226,2368.3,2368.2,3.2078]
[1728006304988,3.3,2368.4,2368.2,3.2078]
[1728006305188,3.72225,2368.4,2368.2,3.2078]
[1728006305393,0.4003,2368.5,2368.2,3.2078]
[1728006306299,0.42225,2368.4,2368.2,3.2078]
[1728006306599,0.42226,2368.3,2368.2,3.2078]
[1728006306796,4.64466,2368.3,2368.2,3.2078]
[1728006307801,0.4003,2368.5,2368.2,3.2078]
[1728006308391,0.42225,2368.4,2368.2,3.2078]
[1728006308604,0.4003,2368.5,2368.2,3.2078]
[1728006308802,0.42225,2368.4,2368.2,3.2078]
[1728006309499,0.82254,2368.5,2368.2,3.2078]
[1728006309897,0.42226,2368.3,2368.2,3.2078]
[1728006310297,4.64466,2368.3,2368.2,3.2078]
[1728006311012,3.3,2368.4,2368.2,3.2078]
[1728006311207,0.4003,2368.5,2368.2,3.2078]
[1728006311400,0.4003,2368.5,2368.3,0.4071]
[1728006312203,0.815,2368.6,2368.3,0.4071]
[1728006312407,3.2078,2368.8,2368.3,3.6149]
[1728006312603,5.65989484,2368.9,2368.3,3.6149]
[1728006312913,0.1302126,2368.9,2368.3,3.6149]
[1728006313108,3.2902,2369.0,2368.3,6.9149]
[1728006313310,0.21530473,2369.2,2368.6,3.2078]
[1728006313608,0.63740473,2369.2,2368.7,0.3995]
[1728006313806,0.3911,2369.1,2368.8,0.4045]
[1728006314312,0.424,2369.4,2368.8,0.4045]
[1728006314515,0.8151,2369.4,2368.8,0.8054]
[1728006315206,1.23716,2369.4,2368.8,0.8054]
[1728006315412,0.42208,2369.3,2368.8,0.8054]
[1728006315613,1.23717,2369.4,2368.8,0.8054]
[1728006315813,0.4221,2369.2,2368.8,0.4045]
[1728006316013,0.20929014,2369.2,2368.8,0.4045]
[1728006316313,0.63140014,2369.2,2368.8,0.4045]
[1728006316806,0.20929014,2369.2,2368.8,0.4045]
[1728006317203,2.27229014,2369.2,2368.8,0.4045]
[1728006319309,2.27229014,2369.2,2368.8,0.7912]
[1728006321312,0.20929014,2369.2,2368.8,0.7912]
[1728006323212,0.63140014,2369.2,2368.8,0.7912]
[1728006323510,0.20929014,2369.2,2368.8,0.7912]
[1728006324214,4.0229,2369.4,2368.9,3.2078]
[1728006324513,4.44497,2369.4,2368.9,3.2078]
[1728006325317,0.06765292,2369.3,2368.9,3.2078]
[1728006325706,0.21619018,2369.2,2368.9,3.2078]
[1728006325917,0.06765391,2369.1,2368.8,0.4045]
[1728006326110,0.06765391,2369.1,2368.8,0.8272]
[1728006327219,0.21619018,2369.2,2368.8,0.8272]
[1728006327515,4.44497,2369.4,2368.8,0.8272]
[1728006327818,0.06765228,2369.3,2368.8,0.8272]
[1728006328121,0.20660144,2369.2,2368.8,0.8272]
[1728006328511,0.62870144,2369.2,2368.8,0.8272]
[1728006328712,0.42209,2369.3,2368.8,0.8272]
[1728006328912,0.06765321,2369.2,2368.8,0.8272]
[1728006329317,0.2789223,2369.2,2368.8,0.8272]
[1728006329520,0.06765321,2369.1,2368.8,0.8272]
[1728006330521,0.06765321,2369.1,2368.8,0.4045]
[1728006330908,0.48977321,2369.1,2368.8,0.4045]
[1728006331124,0.63336909,2369.2,2368.8,0.4045]
[1728006331321,0.06765636,2369.1,2368.8,0.4045]
[1728006333011,3.62987,2369.4,2368.8,0.4045]
[1728006333211,0.06765267,2369.3,2368.9,6.92994]
[1728006333408,3.2078,2369.4,2368.9,6.5078]
[1728006333608,3.2078,2369.4,2369.0,0.42213]
[1728006333818,3.2078,2369.4,2369.1,0.413]
[1728006334016,6.9293,2369.9,2369.2,3.62989]
[1728006334217,2.054,2369.9,2369.5,3.3]
[1728006334418,2.054,2369.9,2369.7,3.3]
[1728006334619,0.4219,2370.3,2369.8,3.6035]
[1728006334818,0.20612898,2370.4,2369.8,4.0278]
[1728006334819,6.15731122,2370.4,2369.8,4.0278]
[1728006335014,9.45731122,2370.4,2369.8,4.0278]
[1728006335417,0.42194,2370.1,2369.8,0.82]
[1728006335721,0.42194,2370.1,2369.5,3.2078]
[1728006335722,3.72197,2370.0,2369.5,3.2078]
[1728006335915,4.1095,2370.0,2369.5,3.6035]
[1728006336316,0.8095,2370.0,2369.5,3.6035]
[1728006336517,1.23147,2370.0,2369.5,3.6035]
[1728006337120,0.8095,2370.0,2369.5,3.6035]
[1728006337319,0.42198,2369.9,2369.5,3.6035]
[1728006337519,0.8095,2370.0,2369.5,3.6035]
[1728006337722,6.5078,2370.2,2369.5,3.6035]
[1728006338019,6.92972,2370.2,2369.5,3.6035]
[1728006338218,6.5078,2370.2,2369.5,3.6035]
[1728006338617,0.42199,2369.8,2369.5,3.6035]
[1728006338817,0.3882,2369.7,2369.5,3.2078]
[1728006339030,1.23682,2369.7,2369.5,3.2078]
[1728006339414,1.64982,2369.7,2369.5,3.2078]
[1728006339625,1.64982,2369.7,2369.3,0.4243]
[1728006339824,1.2278,2369.7,2369.3,0.4243]
[1728006340020,0.42195,2370.1,2369.4,6.92985]
[1728006340223,0.42195,2370.1,2369.4,7.34675]
[1728006340615,6.20171942,2370.2,2369.6,3.3]
[1728006340927,0.13415755,2370.5,2370.0,3.2078]
[1728006341223,5.77586,2370.6,2370.1,0.4169]
[1728006341437,5.77586,2370.6,2370.2,0.3909]
[1728006341727,5.77586,2370.6,2370.2,0.8142]
[1728006341923,5.354,2370.6,2370.2,0.8142]
[1728006342230,1.2008,2370.8,2370.3,3.2078]
[1728006342634,1.62262,2370.8,2370.3,3.2078]
[1728006343025,4.5008,2370.8,2370.3,3.2078]
[1728006343223,3.3,2370.6,2370.3,3.2078]
[1728006343724,4.5008,2370.8,2370.3,3.2078]
[1728006344125,4.92262,2370.8,2370.3,3.2078]
[1728006345120,4.5008,2370.8,2370.3,3.2078]
[1728006345529,1.2008,2370.8,2370.3,3.2078]
[1728006347635,1.62262,2370.8,2370.3,3.2078]
[1728006349233,1.2008,2370.8,2370.3,3.2078]
[1728006349423,1.62263,2370.8,2370.3,3.2078]
[1728006349623,1.2008,2370.8,2370.3,3.2078]
[1728006349823,1.62262,2370.8,2370.3,3.2078]
[1728006350130,1.62262,2370.8,2370.2,1.222]
[1728006350131,0.42186,2370.6,2370.2,1.222]
[1728006350528,0.42184,2370.7,2370.2,1.222]
[1728006350724,0.42189,2370.4,2370.2,0.8142]
[1728006350929,0.42194,2370.1,2369.7,3.596]
[1728006351132,0.42196,2370.1,2369.7,1.2158]
[1728006351431,3.3,2370.2,2369.7,0.8276]
[1728006351630,0.42197,2370.0,2369.7,0.8276]
[1728006352025,0.8375,2370.3,2369.7,0.8276]
[1728006352328,0.42189,2370.4,2369.8,3.7221]
[1728006352528,3.2078,2370.5,2369.8,3.7221]
[1728006352726,3.62968,2370.5,2369.8,4.14408]
[1728006353321,3.62968,2370.5,2369.8,3.7221]
[1728006353525,3.62968,2370.5,2369.8,4.14409]
[1728006353731,0.42191,2370.3,2369.8,3.7221]